fUST/lending_fUST_20250904
["ID","MTS","AMOUNT","RATE_DAILY","PERIOD"]
[383525898,1756972232157,-1859.46612775,0.00013397,2]
[383525900,1756972232166,-300.0,0.00013494,2]
[383525902,1756972232176,-1200.0,0.00013494,2]
[383525904,1756972232188,-4899.35256434,0.00013495,2]
[383525906,1756972232198,-500.0,0.00013496,2]
[383525908,1756972232208,-650.0,0.00013496,2]
[383525910,1756972232217,-417.25965015,0.00013496,2]
[383525912,1756972232226,-500.0,0.00013496,2]
[383525914,1756972232235,-515.44252027,0.00013496,2]
[383525916,1756972232244,-201.00031078,0.00013496,2]
[383525919,1756972232262,-188.99840746,0.00013496,2]
[383525922,1756972232272,-50000.0,0.00013497,2]
[383525924,1756972232282,-435.49990692,0.00013497,2]
[383525926,1756972232291,-500.0,0.00013497,2]
[383525928,1756972232300,-500.0,0.00013497,2]
[383525930,1756972232310,-500.0,0.00013497,2]
[383525932,1756972232319,-500.0,0.00013497,2]
[383525934,1756972232328,-500.0,0.00013497,2]
[383525935,1756972232338,-500.0,0.00013497,2]
[383525937,1756972232347,-500.0,0.00013497,2]
[383525938,1756972232357,-500.0,0.00013497,2]
[383525939,1756972232367,-500.0,0.00013497,2]
[383525940,1756972232378,-500.0,0.00013497,2]
[383525941,1756972232389,-500.0,0.00013497,2]
[383525942,1756972232399,-500.0,0.00013497,2]
[383525943,1756972232409,-500.0,0.00013497,2]
[383525944,1756972232419,-500.0,0.00013497,2]
[383525945,1756972232429,-500.0,0.00013497,2]
[383525946,1756972232438,-500.0,0.00013497,2]
[383525947,1756972232448,-500.0,0.00013497,2]
[383525948,1756972232457,-500.0,0.00013497,2]
[383525949,1756972232467,-500.0,0.00013497,2]
[383525950,1756972232476,-500.0,0.00013497,2]
[383525951,1756972232486,-500.0,0.00013497,2]
[383525953,1756972232496,-500.0,0.00013497,2]
[383525955,1756972232506,-541.90865273,0.00013497,2]
[383525957,1756972232515,-36788.31010954,0.00013498,2]
[383525959,1756972232527,-601.76368681,0.00013498,2]
[383525962,1756972232542,-826.37073863,0.00013498,2]
[383525964,1756972232554,-4638.28059816,0.00013498,2]
[383525994,1756972238036,-30517.16848446,0.00013498,2]
[383526011,1756972238194,-940.8800004,0.00013498,2]
[383526519,1756972243282,-2410.0,0.00013498,2]
[383526842,1756972246435,-11678.68057813,0.00013363,2]
[383527473,1756972315729,157.824902,0.0002438,60]
[383527491,1756972393549,3000.0,0.00025,30]
[383527506,1756972440649,866.38775043,0.00013097,2]
[383527507,1756972440676,197.83026845,0.00013097,2]
[383527511,1756972448928,1064.21801888,0.00013097,2]
[383527537,1756972671675,-326.81949777,0.00013117,2]
[383527602,1756972869963,300.44248335,0.00012986,2]
[383527610,1756972915354,157.824902,0.00024363,60]
[383527693,1756973275578,886.08928931,0.00012919,2]
[383527694,1756973277507,3540.81280008,0.00012919,2]
[383527701,1756973330841,617.20430449,0.00012916,2]
[383527756,1756973432446,-640.03202114,0.00013282,2]
[383527759,1756973432459,-281.95768232,0.00013282,2]
[383527932,1756973440627,-138.8653954,0.00013282,2]
[383527934,1756973440651,-525.00000001,0.00013282,2]
[383528467,1756973446492,-41.17776292,0.00013282,2]
[383528469,1756973446502,-168.0,0.00013324,2]
[383528471,1756973446512,-168.0,0.00013355,2]
[383528473,1756973446521,-969.81763647,0.00013379,2]
[383528478,1756973446562,-230.18236353,0.00013379,2]
[383528480,1756973446572,-492.56064864,0.0001338,2]
[383528482,1756973446584,-7.43935136,0.0001338,2]
[383528484,1756973446594,-500.0,0.0001338,2]
[383528486,1756973446603,-500.0,0.0001338,2]
[383528488,1756973446614,-500.0,0.0001338,2]
[383528490,1756973446623,-500.0,0.0001338,2]
[383528492,1756973446634,-500.0,0.0001338,2]
[383528494,1756973446643,-500.0,0.0001338,2]
[383528496,1756973446653,-500.0,0.0001338,2]
[383528498,1756973446662,-204.86626098,0.0001338,2]
[383528500,1756973446672,-500.0,0.0001338,2]
[383528502,1756973446682,-167.44269646,0.0001338,2]
[383529499,1756973479402,5000.0,0.0002977,64]
[383529500,1756973488083,5000.0,0.0002977,65]
[383529501,1756973512319,157.824902,0.0002438,60]
[383529502,1756973555536,168.0,0.00013044,2]
[383529505,1756973572732,-168.0,0.00013176,2]
[383529506,1756973572764,-168.0,0.00013209,2]
[383529507,1756973572795,-300.0,0.00013245,2]
[383529508,1756973572828,-168.0,0.00013308,2]
[383529509,1756973572859,-300.0,0.00013379,2]
[383529510,1756973572889,-612.54594938,0.00013379,2]
[383529511,1756973572923,-500.0,0.00013379,2]
[383529512,1756973572955,-500.0,0.00013379,2]
[383529513,1756973572987,-300.0,0.0001338,2]
[383529514,1756973573142,-300.0,0.0001338,2]
[383529515,1756973573173,-300.0,0.0001338,2]
[383529516,1756973573204,-1200.0,0.0001338,2]
[383529517,1756973580149,-312.0,0.00013246,2]
[383529518,1756973580332,-2968.77342003,0.0001338,2]
[383529519,1756973582738,-10000.01,0.0001338,2]
[383529520,1756973585043,-10000.01,0.0001338,2]
[383529521,1756973597680,-957.95128496,0.00013246,2]
[383529522,1756973597712,-300.0,0.00013379,2]
[383529523,1756973597781,-7484.10743008,0.0001338,2]
[383529524,1756973602740,-177.50880161,0.00013246,2]
[383529525,1756973602765,-9644.99239678,0.00013246,2]
[383529526,1756973605039,-1423.65375411,0.00013282,2]
[383529527,1756973605077,-7152.70249178,0.0001338,2]
[383529553,1756973809691,7174.89986783,0.00012983,2]
[383529555,1756973826326,2825.11013217,0.00012983,2]
[383529556,1756973826352,4349.78973566,0.00012983,2]
[383529557,1756973834784,264.0,0.0001301,2]
[383529560,1756973850747,264.0,0.0001301,2]
[383529561,1756973858687,264.0,0.0001301,2]
[383529562,1756973874599,264.0,0.0001301,2]
[383529565,1756973882759,264.0,0.0001301,2]
[383529570,1756973898700,264.0,0.0001301,2]
[383529571,1756973906677,264.0,0.0001301,2]
[383529574,1756973922326,264.0,0.0001301,2]
[383529577,1756973930820,264.0,0.0001301,2]
[383529578,1756973947510,264.0,0.0001301,2]
[383529581,1756973952748,-264.0,0.00013141,2]
[383529582,1756973952780,-264.0,0.00013184,2]
[383529583,1756973952818,-264.0,0.00013202,2]
[383529584,1756973952852,-1200.0,0.00013245,2]
[383529585,1756973952883,-1515.76431639,0.0001328,2]
[383529586,1756973952918,-264.0,0.00013284,2]
[383529587,1756973952950,-158.28770115,0.00013296,2]
[383529588,1756973952984,-264.0,0.000133,2]
[383529589,1756973953017,-264.0,0.00013334,2]
[383529590,1756973953048,-300.0,0.00013338,2]
[383529591,1756973955409,264.0,0.0001301,2]
[383529592,1756973960188,-3494.12622926,0.00013339,2]
[383529593,1756973962715,-10000.01,0.00013339,2]
[383529594,1756973964947,-10000.01,0.00013339,2]
[383529595,1756973978855,3111.20266112,0.00013074,2]
[383529616,1756974168903,2700.0,0.00013073,2]
[383529619,1756974192576,2400.0,0.00013073,2]
[383529621,1756974216661,1788.80733888,0.00013073,2]
[383529622,1756974216685,611.19266112,0.00013073,2]
[383529625,1756974239715,2400.0,0.00013073,2]
[383529629,1756974263191,2400.0,0.00013073,2]
[383529632,1756974285985,2400.0,0.00013073,2]
[383529636,1756974309568,2188.81733888,0.00013073,2]
[383529637,1756974309592,211.18266112,0.00013073,2]
[383529642,1756974333318,1200.0,0.00013073,2]
[383529646,1756974356346,1200.0,0.00013073,2]
[383529650,1756974379216,1200.0,0.00013073,2]
[383529653,1756974402133,1200.0,0.00013073,2]
[383529660,1756974426434,1200.0,0.00013073,2]
[383529664,1756974450021,158.28770115,0.00013077,2]
[383529665,1756974450182,613.38,0.000131,2]
[383529668,1756974473779,1326.29377685,0.00013049,2]
[383529676,1756974497847,1326.29377685,0.00013049,2]
[383529680,1756974520670,364.57208403,0.00013049,2]
[383529681,1756974520696,961.72169282,0.00013049,2]
[383529685,1756974543729,1326.29377685,0.00013049,2]
[383529692,1756974563478,2000.0,0.00025,60]
[383529693,1756974567260,1326.29377685,0.00013049,2]
[383529699,1756974578098,5888.0,0.00012995,2]
[383529702,1756974591423,497.70075348,0.00013049,2]
[383529703,1756974591449,828.59302337,0.00013049,2]
[383529711,1756974615618,1326.29377685,0.00013049,2]
[383529784,1756974632575,-1326.29377685,0.00013181,2]
[383529786,1756974632584,-158.28770115,0.000132,2]
[383529788,1756974632594,-1200.0,0.00013272,2]
[383529790,1756974632604,-300.0,0.00013273,2]
[383529792,1756974632614,-300.0,0.00013273,2]
[383529793,1756974632623,-300.0,0.00013273,2]
[383529794,1756974632633,-300.0,0.00013273,2]
[383529796,1756974632643,-300.0,0.00013273,2]
[383529799,1756974632656,-187.78006525,0.00013274,2]
[383529800,1756974632666,-250.06039454,0.00013274,2]
[383529801,1756974632677,-500.0,0.00013274,2]
[383529802,1756974632687,-500.0,0.00013274,2]
[383529803,1756974632697,-500.0,0.00013274,2]
[383529804,1756974632706,-500.0,0.00013274,2]
[383529805,1756974632715,-500.0,0.00013274,2]
[383529806,1756974632726,-239.991,0.00013274,2]
[383529807,1756974632735,-500.0,0.00013274,2]
[383529808,1756974632744,-500.0,0.00013274,2]
[383529809,1756974632753,-500.0,0.00013274,2]
[383529810,1756974632762,-500.0,0.00013274,2]
[383529811,1756974632771,-500.0,0.00013274,2]
[383529812,1756974632781,-300.0,0.00013274,2]
[383529813,1756974632790,-500.0,0.00013274,2]
[383529814,1756974632799,-500.0,0.00013274,2]
[383529815,1756974632809,-500.0,0.00013274,2]
[383529816,1756974632820,-500.0,0.00013274,2]
[383529818,1756974632829,-500.0,0.00013274,2]
[383529821,1756974632839,-300.0,0.00013274,2]
[383529824,1756974632848,-500.0,0.00013274,2]
[383529825,1756974632857,-500.0,0.00013274,2]
[383529827,1756974632866,-500.0,0.00013274,2]
[383529829,1756974632876,-500.0,0.00013274,2]
[383529831,1756974632887,-406.46496686,0.00013274,2]
[383529833,1756974632896,-500.0,0.00013274,2]
[383529834,1756974632906,-304.84993484,0.00013274,2]
[383529835,1756974632915,-500.0,0.00013274,2]
[383529836,1756974632926,-500.0,0.00013274,2]
[383529837,1756974632937,-500.0,0.00013274,2]
[383529838,1756974632946,-500.0,0.00013274,2]
[383529839,1756974632956,-500.0,0.00013274,2]
[383529840,1756974632966,-500.0,0.00013274,2]
[383529841,1756974632975,-500.0,0.00013274,2]
[383529842,1756974632985,-500.0,0.00013274,2]
[383529843,1756974632996,-500.0,0.00013274,2]
[383529844,1756974633006,-500.0,0.00013274,2]
[383529845,1756974633015,-500.0,0.00013274,2]
[383529846,1756974633025,-33892.90402883,0.00013275,3]
[383529847,1756974633048,-500.0,0.00013274,2]
[383529848,1756974633058,-716.6,0.00013275,3]
[383529849,1756974633071,-598.0226664,0.00013275,3]
[383529850,1756974633094,-947.99323754,0.00013275,3]
[383529851,1756974633110,-836.30325091,0.00013275,3]
[383529852,1756974633136,-500.0,0.00013274,2]
[383529853,1756974633145,-358.95344586,0.00013275,3]
[383529859,1756974638397,-500.0,0.00013274,2]
[383529860,1756974638407,-40561.47394679,0.00013275,3]
[383529861,1756974638417,-160.0,0.00013275,3]
[383529862,1756974638426,-1200.0,0.0001328,2]
[383529863,1756974638435,-50000.0,0.0001328,2]
[383529864,1756974638445,-370000.0,0.00013282,2]
[383529865,1756974638454,-151.0,0.000133,2]
[383529866,1756974638464,-2000.0,0.00013309,2]
[383529867,1756974638472,-332.643,0.00013309,2]
[383529868,1756974638482,-11515.1800812,0.00013344,2]
[383529869,1756974638491,-19114.87675489,0.00013357,2]
[383529870,1756974638501,-500.0,0.00013357,2]
[383529871,1756974638511,-157.97680103,0.0001336,2]
[383529872,1756974638520,-327.0,0.0001336,2]
[383529873,1756974638529,-325.0,0.0001336,2]
[383529874,1756974638539,-333.92855279,0.0001336,2]
[383529875,1756974638548,-1731.0,0.0001336,2]
[383529876,1756974638557,-1731.0,0.0001336,2]
[383529877,1756974638567,-743.10416733,0.0001336,2]
[383529878,1756974638577,-1731.0,0.0001336,2]
[383529879,1756974638586,-1731.0,0.0001336,2]
[383529880,1756974638596,-1731.0,0.0001336,2]
[383529881,1756974638605,-1731.0,0.0001336,2]
[383529882,1756974638614,-1731.0,0.0001336,2]
[383529883,1756974638624,-1731.0,0.0001336,2]
[383529884,1756974638634,-1731.0,0.0001336,2]
[383529885,1756974638643,-151.0,0.00013375,2]
[383529886,1756974638653,-154.981116,0.00013375,2]
[383529887,1756974638662,-151.0,0.00013375,2]
[383529888,1756974638671,-151.0,0.00013375,2]
[383529889,1756974638682,-151.0,0.00013375,2]
[383529890,1756974638801,-151.0,0.00013375,2]
[383529891,1756974638812,-151.0,0.00013375,2]
[383529892,1756974638822,-151.0,0.00013375,2]
[383529893,1756974638831,-151.0,0.00013375,2]
[383529894,1756974638841,-151.0,0.00013375,2]
[383529895,1756974638850,-151.0,0.00013375,2]
[383529896,1756974638860,-151.0,0.00013375,2]
[383529897,1756974638869,-151.0,0.00013375,2]
[383529898,1756974638879,-151.0,0.00013375,2]
[383529899,1756974638888,-151.0,0.00013375,2]
[383529900,1756974638898,-480.79656,0.00013375,2]
[383529901,1756974638908,-285.275423,0.00013375,2]
[383529902,1756974638918,-480.79656,0.00013375,2]
[383529903,1756974638928,-184.625421,0.00013375,2]
[383529904,1756974638938,-480.79656,0.00013375,2]
[383529905,1756974638949,-480.79656,0.00013375,2]
[383529906,1756974638959,-151.0,0.00013375,2]
[383529907,1756974638969,-151.0,0.00013375,2]
[383529908,1756974638979,-151.0,0.00013375,2]
[383529909,1756974638989,-151.0,0.00013375,2]
[383529910,1756974639000,-151.0,0.00013375,2]
[383529911,1756974639009,-35985.40963448,0.00013378,2]
[383529912,1756974639019,-151.0,0.00013378,2]
[383529913,1756974639029,-151.0,0.00013378,2]
[383529914,1756974639038,-151.0,0.00013378,2]
[383529915,1756974639047,-283.097965,0.00013378,2]
[383529916,1756974639055,-440.168718,0.00013378,2]
[383529917,1756974639063,-151.0,0.00013378,2]
[383529918,1756974639072,-440.168718,0.00013378,2]
[383529919,1756974639080,-440.168718,0.00013378,2]
[383529920,1756974639089,-440.168718,0.00013378,2]
[383529921,1756974639098,-651.002824,0.00013378,2]
[383529922,1756974639107,-651.002824,0.00013378,2]
[383529923,1756974639118,-151.0,0.00013378,2]
[383529924,1756974639129,-651.002824,0.00013378,2]
[383529925,1756974639142,-151.0,0.00013378,2]
[383529926,1756974639153,-651.002824,0.00013378,2]
[383529927,1756974639163,-151.0,0.00013378,2]
[383529928,1756974639174,-151.0,0.00013378,2]
[383529929,1756974639185,-449.25343,0.00013378,2]
[383529930,1756974639194,-449.25343,0.00013378,2]
[383529931,1756974639204,-449.25343,0.00013378,2]
[383529932,1756974639216,-449.25343,0.00013378,2]
[383529933,1756974639228,-235.016316,0.00013378,2]
[383529934,1756974639241,-151.0,0.00013378,2]
[383529935,1756974639250,-151.0,0.00013378,2]
[383529936,1756974639260,-151.0,0.00013378,2]
[383529937,1756974639269,-300.15855651,0.0001338,2]
[383529938,1756974639278,-151.0,0.00013383,2]
[383529939,1756974639288,-151.0,0.00013383,2]
[383529940,1756974639297,-151.0,0.00013383,2]
[383529941,1756974639307,-151.0,0.00013383,2]
[383529942,1756974639318,-264.0,0.00013396,2]
[383529943,1756974639327,-158.28770115,0.00013399,2]
[383529944,1756974639337,-151.0,0.000134,2]
[383529945,1756974639346,-151.0,0.000134,2]
[383529946,1756974639355,-151.0,0.000134,2]
[383529947,1756974639367,-60851.1960666,0.00013401,2]
[383529948,1756974639376,-151.0,0.00013401,2]
[383529949,1756974639387,-151.0,0.00013401,2]
[383529950,1756974639397,-151.0,0.00013401,2]
[383529951,1756974639407,-151.0,0.00013401,2]
[383529952,1756974639417,-309.347141,0.00013401,2]
[383529953,1756974639426,-309.347141,0.00013401,2]
[383529954,1756974639436,-309.347141,0.00013401,2]
[383529955,1756974639445,-309.347141,0.00013401,2]
[383529956,1756974639455,-151.0,0.00013401,2]
[383529957,1756974639465,-151.0,0.00013401,2]
[383529958,1756974639474,-151.0,0.00013401,2]
[383529959,1756974639485,-151.0,0.00013401,2]
[383529960,1756974639495,-151.0,0.00013401,2]
[383529961,1756974639505,-151.0,0.00013401,2]
[383529962,1756974639515,-155.959449,0.00013401,2]
[383529963,1756974639524,-151.0,0.00013401,2]
[383529964,1756974639533,-151.0,0.00013401,2]
[383529965,1756974639543,-151.0,0.00013401,2]
[383529966,1756974639552,-151.0,0.00013401,2]
[383529967,1756974639561,-218.935891,0.00013401,2]
[383529968,1756974639571,-151.0,0.00013401,2]
[383529969,1756974639581,-218.935891,0.00013401,2]
[383529970,1756974639591,-218.935891,0.00013401,2]
[383529971,1756974639600,-218.935891,0.00013401,2]
[383529972,1756974639609,-151.0,0.00013401,2]
[383529973,1756974639619,-151.0,0.00013401,2]
[383529974,1756974639628,-151.0,0.00013401,2]
[383529975,1756974639637,-151.0,0.00013401,2]
[383529976,1756974639647,-151.0,0.00013401,2]
[383529977,1756974639658,-151.0,0.00013401,2]
[383529978,1756974639667,-151.0,0.00013401,2]
[383529979,1756974639676,-151.0,0.00013401,2]
[383529980,1756974639686,-151.0,0.00013401,2]
[383529981,1756974639695,-151.0,0.00013401,2]
[383529982,1756974639704,-151.0,0.00013401,2]
[383529983,1756974639714,-151.0,0.00013401,2]
[383529984,1756974639723,-151.0,0.00013401,2]
[383529985,1756974639733,-151.0,0.00013401,2]
[383529986,1756974639748,-151.0,0.00013401,2]
[383529987,1756974639764,-151.0,0.00013401,2]
[383529988,1756974639779,-151.0,0.00013401,2]
[383529989,1756974639792,-151.0,0.00013401,2]
[383529990,1756974639806,-151.0,0.00013401,2]
[383529991,1756974639819,-151.0,0.00013401,2]
[383529992,1756974639835,-151.0,0.00013401,2]
[383529993,1756974639848,-480.79656,0.00013401,2]
[383529994,1756974639862,-480.79656,0.00013401,2]
[383529995,1756974639877,-480.79656,0.00013401,2]
[383529996,1756974639890,-480.79656,0.00013401,2]
[383529997,1756974639904,-151.0,0.00013401,2]
[383529998,1756974639918,-151.0,0.00013401,2]
[383529999,1756974639932,-151.0,0.00013401,2]
[383530000,1756974639946,-151.0,0.00013401,2]
[383530001,1756974639959,-151.0,0.00013401,2]
[383530002,1756974639970,-151.0,0.00013401,2]
[383530003,1756974639984,-151.0,0.00013401,2]
[383530004,1756974639998,-151.0,0.00013401,2]
[383530005,1756974640012,-151.0,0.00013401,2]
[383530006,1756974640026,-151.0,0.00013401,2]
[383530008,1756974640041,-151.0,0.00013401,2]
[383530011,1756974640055,-151.0,0.00013401,2]
[383530013,1756974640069,-151.851074,0.00013401,2]
[383530014,1756974640083,-371.469524,0.00013401,2]
[383530015,1756974640094,-371.469524,0.00013401,2]
[383530016,1756974640105,-562.478485,0.00013401,2]
[383530018,1756974640116,-151.0,0.00013401,2]
[383530019,1756974640133,-371.469524,0.00013401,2]
[383530020,1756974640148,-562.478485,0.00013401,2]
[383530021,1756974640159,-151.0,0.00013401,2]
[383530022,1756974640171,-562.478485,0.00013401,2]
[383530023,1756974640183,-371.469524,0.00013401,2]
[383530024,1756974640197,-562.478485,0.00013401,2]
[383530025,1756974640210,-486.393892,0.00013401,2]
[383530026,1756974640221,-486.393892,0.00013401,2]
[383530027,1756974640232,-486.393892,0.00013401,2]
[383530028,1756974640243,-486.393892,0.00013401,2]
[383530029,1756974640256,-557.686235,0.00013401,2]
[383530030,1756974640268,-557.686235,0.00013401,2]
[383530031,1756974640281,-557.686235,0.00013401,2]
[383530032,1756974640293,-557.686235,0.00013401,2]
[383530033,1756974640305,-163.160941,0.00013401,2]
[383530034,1756974640316,-163.160941,0.00013401,2]
[383530035,1756974640328,-163.160941,0.00013401,2]
[383530036,1756974640339,-163.160941,0.00013401,2]
[383530037,1756974640351,-2040.220961,0.00013401,2]
[383530038,1756974640362,-2040.220961,0.00013401,2]
[383530039,1756974640374,-2040.220961,0.00013401,2]
[383530040,1756974640387,-2040.220961,0.00013401,2]
[383530041,1756974640400,-288.62706,0.00013401,2]
[383530042,1756974640411,-288.62706,0.00013401,2]
[383530043,1756974640423,-288.62706,0.00013401,2]
[383530044,1756974640435,-288.62706,0.00013401,2]
[383530045,1756974640447,-211.037762,0.00013401,2]
[383530046,1756974640460,-151.0,0.00013401,2]
[383530047,1756974640472,-211.037762,0.00013401,2]
[383530048,1756974640484,-151.0,0.00013401,2]
[383530049,1756974640496,-151.0,0.00013401,2]
[383530050,1756974640507,-211.037762,0.00013401,2]
[383530051,1756974640519,-151.0,0.00013401,2]
[383530052,1756974640531,-211.037762,0.00013401,2]
[383530053,1756974640543,-151.0,0.00013401,2]
[383530054,1756974640554,-151.0,0.00013401,2]
[383530055,1756974640566,-151.0,0.00013401,2]
[383530056,1756974640578,-151.0,0.00013401,2]
[383530057,1756974640591,-151.0,0.00013401,2]
[383530058,1756974640603,-151.0,0.00013401,2]
[383530059,1756974640615,-151.0,0.00013401,2]
[383530060,1756974640627,-151.0,0.00013401,2]
[383530061,1756974640638,-151.0,0.00013401,2]
[383530062,1756974640650,-151.0,0.00013401,2]
[383530063,1756974640662,-151.0,0.00013401,2]
[383530064,1756974640674,-269.09309013,0.00013401,2]
[383530065,1756974640686,-151.0,0.00013401,2]
[383530066,1756974640699,-151.0,0.00013401,2]
[383530067,1756974640711,-151.0,0.00013401,2]
[383530068,1756974640723,-151.0,0.00013401,2]
[383530069,1756974640736,-151.07393802,0.00013401,2]
[383530070,1756974640748,-500.0,0.00013401,2]
[383530071,1756974640760,-151.0,0.00013401,2]
[383530072,1756974640772,-151.0,0.00013401,2]
[383530073,1756974640784,-151.0,0.00013401,2]
[383530074,1756974640796,-151.0,0.00013401,2]
[383530075,1756974640808,-151.0,0.00013401,2]
[383530076,1756974640820,-151.0,0.00013401,2]
[383530077,1756974640832,-151.0,0.00013401,2]
[383530079,1756974640844,-151.0,0.00013401,2]
[383530080,1756974640856,-151.0,0.00013401,2]
[383530081,1756974640868,-151.0,0.00013401,2]
[383530082,1756974640880,-151.0,0.00013401,2]
[383530083,1756974640893,-151.0,0.00013401,2]
[383530084,1756974640904,-440.168718,0.00013401,2]
[383530085,1756974640914,-151.258278,0.00013401,2]
[383530087,1756974641075,-440.168718,0.00013401,2]
[383530088,1756974641097,-151.22071053,0.00013401,2]
[383530089,1756974641109,-500.0,0.00013401,2]
[383530090,1756974641118,-440.168718,0.00013401,2]
[383530091,1756974641128,-440.168718,0.00013401,2]
[383530092,1756974641142,-651.002824,0.00013401,2]
[383530093,1756974641152,-651.002824,0.00013401,2]
[383530094,1756974641161,-151.0,0.00013401,2]
[383530095,1756974641171,-651.002824,0.00013401,2]
[383530096,1756974641181,-651.002824,0.00013401,2]
[383530097,1756974641191,-151.0,0.00013401,2]
[383530098,1756974641200,-286.377505,0.00013401,2]
[383530099,1756974641211,-153.278175,0.00013401,2]
[383530100,1756974641220,-449.25343,0.00013401,2]
[383530101,1756974641230,-449.25343,0.00013401,2]
[383530102,1756974641239,-449.25343,0.00013401,2]
[383530103,1756974641249,-449.25343,0.00013401,2]
[383530104,1756974641259,-151.0,0.00013401,2]
[383530105,1756974641268,-151.0,0.00013401,2]
[383530106,1756974641278,-151.0,0.00013402,2]
[383530107,1756974641288,-151.0,0.00013402,2]
[383530108,1756974641297,-157.828789,0.00013402,2]
[383530109,1756974641306,-151.0,0.00013402,2]
[383530110,1756974641317,-151.0,0.00013402,2]
[383530111,1756974641326,-151.0,0.00013402,2]
[383530112,1756974641335,-151.0,0.00013402,2]
[383530113,1756974641345,-151.0,0.00013402,2]
[383530114,1756974641355,-151.0,0.00013402,2]
[383530115,1756974641365,-151.0,0.00013402,2]
[383530116,1756974641375,-151.0,0.00013402,2]
[383530117,1756974641386,-151.0,0.00013402,2]
[383530118,1756974641396,-151.0,0.00013402,2]
[383530119,1756974641406,-151.0,0.00013402,2]
[383530120,1756974641416,-151.0,0.00013402,2]
[383530121,1756974641425,-208.466486,0.00013402,2]
[383530122,1756974641435,-151.0,0.00013402,2]
[383530123,1756974641444,-151.0,0.00013402,2]
[383530124,1756974641454,-151.0,0.00013402,2]
[383530125,1756974641464,-154.338481,0.00013402,2]
[383530126,1756974641473,-151.0,0.00013402,2]
[383530127,1756974641483,-151.0,0.00013402,2]
[383530128,1756974641493,-151.0,0.00013402,2]
[383530129,1756974641502,-151.34736609,0.00013402,2]
[383530130,1756974641512,-151.0,0.00013402,2]
[383530131,1756974641523,-151.44278543,0.00013402,2]
[383530132,1756974641533,-151.0,0.00013402,2]
[383530133,1756974641542,-151.0,0.00013402,2]
[383530134,1756974641551,-276.14782347,0.00013423,2]
[383530135,1756974641561,-3459.3103183,0.00013471,2]
[383530136,1756974641571,-151.0,0.00013483,2]
[383530137,1756974641581,-151.0,0.00013483,2]
[383530138,1756974641591,-151.0,0.00013483,2]
[383530139,1756974641601,-151.0,0.00013483,2]
[383530140,1756974641612,-151.0,0.00013483,2]
[383530141,1756974641621,-151.0,0.00013483,2]
[383530142,1756974641631,-151.0,0.00013483,2]
[383530143,1756974641641,-158.175489,0.00013483,2]
[383530144,1756974641650,-151.0,0.00013483,2]
[383530145,1756974641660,-151.0,0.00013483,2]
[383530146,1756974641669,-151.0,0.00013483,2]
[383530147,1756974641679,-151.0,0.00013483,2]
[383530148,1756974641688,-264.0,0.00013484,2]
[383530149,1756974641698,-1464.1597994,0.00013487,2]
[383530150,1756974641707,-5888.0,0.0001349,2]
[383530151,1756974641717,-151.0,0.000135,2]
[383530152,1756974641727,-151.0,0.000135,2]
[383530153,1756974641736,-168.0,0.00013516,2]